Workbook

Sheet Introduction
B5: Zinnia Budget
B6: Version 1.0
B7: Rachel Painter | I7: Eryn Bell
B8: Email: rpainter@utk.edu | I8: Email: ebell@utk.edu
B9: Becky Bowling
B10: Email: bowling10@utk.edu
B27: Programs in agriculture and natural resources, 4-H youth development, family and consumer sciences, and resource development.
B28: University of Tennessee Institute of Agriculture, U.S. Department of Agriculture and country governments cooperating.
B29: UT Extension provide equal opportunities in programs and employment.

Sheet Assumptions
B2: Assumptions
B5: This spreadsheet contains the 2025 University of Tennessee cut flower budget for Zinnias. Quantities and prices can be modified on the budget for any light blue cell. This spreadsheet should not be considered representative of all circumstances and is provided as a template or guide that can be used to estimate cost of production. Inputs used and prices for inputs vary tremendously from farm-to-farm; as such, producers are encouraged to use their own inputs, input prices, and cost structures for budgeting and planning purposes.
B10: This budget assumes that this crop is part of a 1/4-acre cut flower operation (approximately 10,890 sq. ft.) managed by one full-time employee (40 hours per week), meaning the farm is assumed to have 5 production spaces of summer annual flowers grown on 1,000 square foot plots each. Expenses such as labor, utilities, equipment, and materials are shared across the entire operation, with each section bearing equal distribution of these costs (20%). This assumption allows for management and budgeting for a flower farm producing multiple flower types on a 1/4-acre plot.
B15: This budget assumes various zinnia varieties planted on 9 inch spacing for a seeding rate of approximately 1,780 seeds in a 1,000 sq. ft. plot. (333 ft. length, 3 ft wide bed, with 4 rows of seeds per bed).
B17: Variable Costs
B19: 1The marketed rate represents the percentage of flower stems successfully sold after accounting for production losses and unsold inventory. Losses can occur from crop failure, transplant issues, harvest or post-harvest damage, and stems that remain unsold due to market limitations. Marketed rates typically vary depending on the producer’s production skills and experience, as well as anticipated market demand. Producers are encouraged to adjust the marketed rate to reflect experience and skills regarding management practices, crop conditions, and sales opportunities.
B26: 2An average of 8 stems per plant assumed based on data from a 2024 UT cut flower study.
B28: 3An average price per stem for direct to consumer sales was estimated using the Tennessee Farmers Market Price Reports for various farmers markets as well as prices from experienced producers from across the state. As significant regional and seasonal price variability may exist, users are encouraged to adjust this price to reflect market conditions based on specific location, customer demand, and production to improve the accuracy of the budget calculations. Source: https://arec.tennessee.edu/extension/tennessee-market-highlights/
B33: 4An assumption that all seeds are grown as transplants (plugs) by the producer for succession planting. Seed cost estimated as average cost of various varieties from common seed supplier prices. This estimate includes the average seed price calculated above and the cost of common growing medium, 606 black growing trays with 36 cells per tray, and energy use of a typical seed starting wire rack station using 16 T8, 18W, 4 ft. bulbs running for 16 hours per day for 2 months to grow transplants. The fixed cost of the wire rack station and bulbs are included in the general overhead fixed costs.
B39: 5For accurate fertilizer and lime recommendations, take a soil sample. An assumption of 20% of soil sample costs are distributed to this crop. Source: https://soillab.tennessee.edu/soil-testing/field-soil-samples/
B42: 6Total fertilizer and pest control applications split over multiple applications. Fertilizer and pest control applications are representative of typical operations in Tennessee after proper testing and following current University of Tennessee Extension recommendations. Recommendations are current at time of publication and will be updated regularly; however, recommendations for agricultural inputs including pesticide registrations may be updated and inclusion in the budget should not be interpreted as a recommendation for use. Consult a county Extension agent for current application and control recommendations.
B47: County Extension office contact information available here.
B48: 7Irrigation variable costs include water cost, driptape and attachments which would often be purchased annually. Irrigation is assumed to be set up as 3 ft wide beds with 2 drip lines of 5/8", 6 mil drip tape with a flow rate of 0.5 gpm. Water cost is estimated for applying 1 inch of water per week with 12 in. emitter spacing and average of water cost calculated from both urban and rural cities costs per 1,000 gal across Tennessee.
B53: 8Staple and ground cover cost estimated for a 6 inch sod staple with a flat top to secure a 3.2 oz woven black ground cover. If no ground cover is used, ground cover and staple cost can be removed.
B56: 9Flower netting costs include the purchase of 6-inch by 6-inch netting and step-in fence posts, which are used to support the netting for plant stabilization throughout the growing season.
B59: 10Labor is estimated as one full time employee managing the 1/4 acre operation. Therefore, 20% of the employee's time would be devoted to this crop, resulting in 8 hours per week for the number of weeks spent producing the crop. This assumption was accurate based on labor hours from a UT cut flower study in 2024. Labor rate is the USDA Adverse Wage Rate for farm workers for 2025.
B60: Source: https://flag.dol.gov/wage-data/adverse-effect-wage-rates#range
B61: 11Machinery repair and maintenance cost are estimated as 5% of purchase price of large equipment, with 20% of the cost allocated to this crop.
B64: 12Fuel and propane estimated to prepare ground, burn holes into woven ground cover, and maintain grass rows between production spaces throughout growing season. Current average prices are estimated, but should be adjusted to reflect current relevant prices.
B67: 13Typical harvest containers are assumed as a variable expense as some harvest containers may be damaged or provided for a customer for bulk purchases. Purchasing new harvest containers annually can assist with sanitation and be part of an integrated pest management strategy.
B70: 14Marketing cost are estimated at 20% of maximum gross sales. Marketing costs include packaging such as paper or plastic wrap, bands to secure stems, transportation to selling locations, promotional materials, and other costs not specified related to post-harvest and selling expenses.
B74: 15An operating interest for 6 months of operating capital is estimated at a current interest rate of 7% of all variable expenses. This should be adjusted to reflect current interest rates and considered an opportunity cost of capital being utilized for this enterprise.
B76: Fixed Costs
B77: 16Small tools and equipment include shovels, rakes, a propane torch to burn holes in ground cover, a wheel barrow, hand pruners, gloves, loppers, hammers, mallets, and the main irrigation hookup equipment costs are estimated with a useful life of 3 years and 20% of calculated annual expenses allocated to this crop.
B81: 17Estimated cost of common tiller and lawn mower used for cut flower production and operation maintenance are calculated for the 1/4 acre operation with a useful life of 5 years and 20% of cost allocated to this crop.
B84: 18Expenses for a storage and post-harvest handling building with dimensions of 15'X20'X16' are estimated with a useful life of 15 years, along with interest, insurance, property taxes, repairs on the building. This building would be used for the entire operation with 20% of the annual cost allocated to this crop.
B88: 19Returns to land, ownership, and capital are estimated at 10% of the total variable costs, reflecting the opportunity cost of utilizing the land and invested capital in the flower operation.
B91: 20General overhead costs are estimated at 10% of total production costs of the budget. These costs include expenses not previously accounted for including the transplant starting wire rack and lights, general utilities, insurance, office supplies, administrative or professional support or fees.

Sheet Zinnia Production Budget
A1: Zinnia Budget
A2: Flower Variety | B2: Zinnia, Various Varieties
A3: Production Space | B3: 1000 | C3: sq. ft.
A4: Seeding Rate | B4: 1780 | C4: seeds
A5: Marketed Rate1 | B5: 0.65
A6: Average Stems/ Plant2 | B6: 8
A8: Gross Income | B8: Unit | C8: Quantity | D8: $/Unit | E8: Total Estimate
A9: Zinnia Stems3 | B9: Stem | C9: =(B4*B5)*B6 -> 9256 | D9: 1 | E9: =C9*D9 -> 9256
A11: Variable Costs | B11: Unit | C11: Quantity | D11: $/Unit | E11: Total Estimate
A12: Transplants (growing plugs)4 | B12: plugs | C12: 1780 | D12: ='Zinnia Input Calculations'!C$53 -> 0.1125828652 | E12: =C12*D12 -> 200.3975
A13: Soil Test5 | B13: test | C13: 0.2 | D13: 15 | E13: =C13*D13 -> 3
A14: Fertilizer - 20-10-206 | B14: lb. | C14: ='Zinnia Input Calculations'!F$57 -> 10 | D14: ='Zinnia Input Calculations'!I$57 -> 1.5032 | E14: 15.032
A15: Fungicide - cost of 3 sprays throughout growing season6 | E15: ='Zinnia Input Calculations'!M$87 -> 8.38675
A16: Insecticide - cost of 4 sprays throughout growing season6 | E16: ='Zinnia Input Calculations'!M$93 -> 9.485
A17: Irrigation Supplies7
A18: Dripline purchased annually | B18: linear ft. | C18: ='Zinnia Input Calculations'!E$102 -> 666.6666667 | D18: ='Zinnia Input Calculations'!H$102 -> 0.0496 | E18: =C18*D18 -> 33.06666667
A19: Attachments purchased annually | C19: 1 | D19: ='Zinnia Input Calculations'!H$125 -> 67.06 | E19: 67.06
A20: Operation of Irrigation | B20: water use in 1,000 gal. | C20: ='Zinnia Input Calculations'!K$129 -> 13.92696 | D20: ='Zinnia Input Calculations'!L$129 -> 6.836333333 | E20: =C20*D20 -> 95.20934088
A21: Staples for Ground Cover8 | B21: staples | C21: ='Zinnia Input Calculations'!G$66 -> 1000 | D21: ='Zinnia Input Calculations'!D$68 -> 0.07795 | E21: =D21*C21 -> 77.95
A22: Black Woven Ground Cover8 | B22: ft. | C22: 1000 | D22: ='Zinnia Input Calculations'!G$63 -> 0.0300137037 | E22: =C22*D22 -> 30.0137037
A23: Flower Netting9 | B23: sq. ft. | C23: 1000 | D23: ='Zinnia Input Calculations'!F$79 -> 0.075 | E23: 75
A24: Stakes9 | B24: stakes | C24: ='Zinnia Input Calculations'!H$72 -> 84 | D24: ='Zinnia Input Calculations'!I$74 -> 0.9966666667 | E24: 83.72
A25: Labor10 | B25: hours | C25: ='Zinnia Input Calculations'!F$137 -> 112 | D25: ='Zinnia Input Calculations'!C$139 -> 15.87 | E25: 1777.44
A26: Machinery Repair and Maintenance (5%)11 | B26: 1,000 sq. ft. | C26: 1 | D26: ='Zinnia Input Calculations'!B$153 -> 60 | E26: =D26*C26 -> 60
A27: Fuel12 | B27: gal. | C27: ='Zinnia Input Calculations'!H$175 -> 6 | D27: ='Zinnia Input Calculations'!E$176 -> 3.75 | E27: =C27*D27 -> 22.5
A28: Propane12 | B28: lb. | C28: ='Zinnia Input Calculations'!B$178 -> 0.4 | D28: ='Zinnia Input Calculations'!E$177 -> 6.5 | E28: 2.6
A29: Harvest Containers13 | B29: each | C29: 10 | D29: ='Zinnia Input Calculations'!D$133 -> 2.05 | E29: 20.5
A30: Marketing Costs (20% of Estimated Gross Income)14 | D30: =E9*0.2 -> 1851.2 | E30: =D30 -> 1851.2
A31: Operating Interest (7% of Variable Costs)15 | C31: 0.07 | D31: =(SUM(E12:E30)/2) -> 2216.280481 | E31: =D31*C31 -> 155.1396336
A32: Total Variable Costs | E32: =SUM(E12:E31) -> 4587.700595
A34: Fixed Costs | B34: Unit | C34: Quantity | D34: $/Unit | E34: Total Estimate
A35: Small Tools and Equipment16 | B35: Useful Life of 3 Years | C35: 1 | D35: ='Zinnia Input Calculations'!B$171 -> 102.1406667 | E35: =C35*D35 -> 102.1406667
A36: Tiller17 | B36: Model 732 Tiller | C36: 1 | D36: ='Zinnia Input Calculations'!B$148 -> 18.56 | E36: =C36*D36 -> 18.56
A37: Lawn Mower17 | B37: Mower 35" | C37: 1 | D37: ='Zinnia Input Calculations'!B$151 -> 10.24 | E37: =D37*C37 -> 10.24
A38: Irrigation System Main Component Attachments | C38: 1 | D38: ='Zinnia Input Calculations'!E$127 -> 18.07666667 | E38: =D38*C38 -> 18.07666667
A39: Storage and Post-Harvest Handling Building18 | B39: (15'X20'X16') | C39: 1 | D39: ='Zinnia Input Calculations'!N$185 -> 166.9676142 | E39: =C39*D39 -> 166.9676142
A40: Returns to Land, Ownership, and Capital (10% of Variable Costs)19 | D40: =E$32*0.1 -> 458.7700595 | E40: =D40 -> 458.7700595
A41: General Overhead Cost (15% of Total Production Cost)20 | D41: =(SUM($E$32,$E$35:$E$40))*0.15 -> 804.3683403 | E41: =D41 -> 804.3683403
A42: Total Fixed Costs | E42: =SUM(E35:E41) -> 1579.123347
A43: Total Specified Costs | E43: =E42+E32 -> 6166.823942
A45: Returns Over Specified Cost | E45: =E9-E43 -> 3089.176058
A125: Zinnia Budget
A126: Flower Variety | B126: Zinnia, Various Varieties
A127: Production Space | B127: 1000 | C127: sq. ft.
A128: Seeding Rate | B128: 1780 | C128: seeds
A129: Crop Survival and Marketable Rate | B129: 0.65
A130: Average Stems/ Plant | B130: 8
A132: Gross Income | B132: Unit | C132: Quantity | D132: $/Unit | E132: Total Estimate
A133: Zinnia Stems | B133: Stem | C133: =(B128*B129)*B130 -> 9256 | D133: 1 | E133: =C133*D133 -> 9256
A135: Variable Costs | B135: Unit | C135: Quantity | D135: $/Unit | E135: Total Estimate
A136: Transplants (growing plugs) | B136: plugs | C136: 1780 | D136: ='Zinnia Input Calculations'!C$53 -> 0.1125828652 | E136: =C136*D136 -> 200.3975
A137: Soil Test | B137: test | C137: 0.2 | D137: 15 | E137: =C137*D137 -> 3
A138: Fertilizer - 20-10-20 | B138: lb. | C138: ='Zinnia Input Calculations'!F$57 -> 10 | D138: ='Zinnia Input Calculations'!I$57 -> 1.5032 | E138: 15.032
A139: Fungicide - cost of 3 sprays throughout growing season | E139: ='Zinnia Input Calculations'!M$87 -> 8.38675
A140: Insecticide - cost of 4 sprays throughout growing season | E140: ='Zinnia Input Calculations'!M$93 -> 9.485
A141: Irrigation Supplies
A142: Dripline purchased annually | B142: linear ft. | C142: ='Zinnia Input Calculations'!E$102 -> 666.6666667 | D142: ='Zinnia Input Calculations'!H$102 -> 0.0496 | E142: =C142*D142 -> 33.06666667
A143: Attachments purchased annually | C143: 1 | D143: ='Zinnia Input Calculations'!H$125 -> 67.06 | E143: 67.06
A144: Operation of Irrigation | B144: water use in 1,000 gal. | C144: ='Zinnia Input Calculations'!K$129 -> 13.92696 | D144: ='Zinnia Input Calculations'!L$129 -> 6.836333333 | E144: =C144*D144 -> 95.20934088
A145: Staples for Ground Cover | B145: staples | C145: ='Zinnia Input Calculations'!G$66 -> 1000 | D145: ='Zinnia Input Calculations'!D$68 -> 0.07795 | E145: =D145*C145 -> 77.95
A146: Black Woven Ground Cover | B146: ft. | C146: 1000 | D146: ='Zinnia Input Calculations'!G$63 -> 0.0300137037 | E146: =C146*D146 -> 30.0137037
A147: Flower Netting | B147: sq. ft. | C147: 1000 | D147: ='Zinnia Input Calculations'!F$79 -> 0.075 | E147: 75
A148: Stakes | B148: stakes | C148: ='Zinnia Input Calculations'!H$72 -> 84 | D148: ='Zinnia Input Calculations'!I$74 -> 0.9966666667 | E148: 83.72
A149: Labor | B149: hours | C149: ='Zinnia Input Calculations'!F$137 -> 112 | D149: ='Zinnia Input Calculations'!C$139 -> 15.87 | E149: 1777.44
A150: Machinery Repair and Maintenance (5%) | B150: 1,000 sq. ft. | C150: 1 | D150: ='Zinnia Input Calculations'!B$153 -> 60 | E150: =D150*C150 -> 60
A151: Fuel | B151: gal. | C151: ='Zinnia Input Calculations'!H$175 -> 6 | D151: ='Zinnia Input Calculations'!E$176 -> 3.75 | E151: =C151*D151 -> 22.5
A152: Propane | B152: lb. | C152: ='Zinnia Input Calculations'!B$178 -> 0.4 | D152: ='Zinnia Input Calculations'!E$177 -> 6.5 | E152: 2.6
A153: Harvest Containers | B153: each | C153: 10 | D153: ='Zinnia Input Calculations'!D$133 -> 2.05 | E153: 20.5
A154: Marketing Costs (20% of Estimated Gross Income) | D154: =E133*0.2 -> 1851.2 | E154: =D154 -> 1851.2
A155: Operating Interest (7% of Variable Costs) | C155: 0.07 | D155: =(SUM(E136:E154)/2) -> 2216.280481 | E155: =D155*C155 -> 155.1396336
A156: Total Variable Costs | E156: =SUM(E136:E155) -> 4587.700595
A158: Fixed Costs | B158: Unit | C158: Quantity | D158: $/Unit | E158: Total Estimate
A159: Small Tools and Equipment | B159: Useful Life of 3 Years | C159: 1 | D159: ='Zinnia Input Calculations'!B$171 -> 102.1406667 | E159: =C159*D159 -> 102.1406667
A160: Tiller | B160: Model 732 Tiller | C160: 1 | D160: ='Zinnia Input Calculations'!B$148 -> 18.56 | E160: =C160*D160 -> 18.56
A161: Lawn Mower | B161: Mower 35" | C161: 1 | D161: ='Zinnia Input Calculations'!B$151 -> 10.24 | E161: =D161*C161 -> 10.24
A162: Irrigation System Main Component Attachments | C162: 1 | D162: ='Zinnia Input Calculations'!E$127 -> 18.07666667 | E162: =D162*C162 -> 18.07666667
A163: Storage and Post-Harvest Handling Building | B163: (15'X20'X16') | C163: 1 | D163: ='Zinnia Input Calculations'!N$185 -> 166.9676142 | E163: =C163*D163 -> 166.9676142
A164: Returns to Land, Ownership, and Capital (10% of Variable Costs) | D164: =E$32*0.1 -> 458.7700595 | E164: =D164 -> 458.7700595
A165: General Overhead Cost (15% of Total Production Cost) | D165: =(SUM($E$32,$E$35:$E$40))*0.15 -> 804.3683403 | E165: =D165 -> 804.3683403
A166: Total Fixed Costs | E166: =SUM(E159:E165) -> 1579.123347
A167: Total Specified Costs | E167: =E166+E156 -> 6166.823942
A169: Returns Over Specified Cost | E169: =E133-E167 -> 3089.176058

Sheet Zinnia Input Calculations (hidden)
A1: 1000 | B1: sq ft bed | C1: ='Zinnia Production Budget'!B4 -> 1780 | D1: seeding rate | E1: 3 ft wide by 333.3 ft long bed. 9 inch spacing means 4 rows of seeds per bed for approx 1,780 seeds
A3: Planting Data
A4: Variety | B4: Type | C4: N Level | D4: Succession | E4: Number Planted | F4: Survived | G4: Square feet/plot | H4: Per Plant Square Footage | I4: Total Stems/Plot | J4: Stems/ft2 | K4: Avg Stems/ft2/cultivar/N Level | L4: Av Stems/ft2/Type | M4: Av Stem/ft2/Type/MedN | N4: Av Stem/ft2/Type/LowN
A5: Benary Mix | B5: Zinnia | C5: Med | D5: 1 | E5: 36 | F5: 35 | G5: 15 | H5: =G5/E5 -> 0.4166666667 | I5: 263 | J5: =I5/G5 -> 17.53333333
A6: Benary Mix | B6: Zinnia | C6: Med | D6: 2 | E6: 30 | F6: 30 | G6: 13.5 | H6: 0.45 | I6: 194 | J6: 14.37037037 | K6: =AVERAGE(J5:J6) -> 15.95185185
A7: Benary Mix | B7: Zinnia | C7: Low | D7: 1 | E7: 28 | F7: 27 | G7: 13.5 | H7: 0.4821428571 | I7: 159 | J7: 11.77777778
A8: Benary Mix | B8: Zinnia | C8: Low | D8: 2 | E8: 22 | F8: 21 | G8: 9 | H8: 0.4090909091 | I8: 135 | J8: 15 | K8: =AVERAGE(J7:J8) -> 13.38888889
A9: QuLemPeach | B9: Zinnia | C9: Med | D9: 1 | E9: 31 | F9: 31 | G9: 15 | H9: 0.4838709677 | I9: 312 | J9: 20.8
A10: QuLemPeach | B10: Zinnia | C10: Med | D10: 2 | E10: 30 | F10: 28 | G10: 13.5 | H10: 0.45 | I10: 230 | J10: 17.03703704 | K10: =AVERAGE(J9:J10) -> 18.91851852
A11: QuLemPeach | B11: Zinnia | C11: Low | D11: 1 | E11: 42 | F11: 35 | G11: 18 | H11: 0.4285714286 | I11: 327 | J11: 18.16666667
A12: QuLemPeach | B12: Zinnia | C12: Low | D12: 2 | E12: 30 | F12: 29 | G12: 13.5 | H12: 0.45 | I12: 267 | J12: 19.77777778 | K12: =AVERAGE(J11:J12) -> 18.97222222
A13: Benary Lime | B13: Zinnia | C13: Med | D13: 1 | E13: 28 | F13: 27 | G13: 13.5 | H13: 0.4821428571 | I13: 221 | J13: 16.37037037
A14: Benary Lime | B14: Zinnia | C14: Med | D14: 2 | E14: 30 | F14: 29 | G14: 13.5 | H14: 0.45 | I14: 212 | J14: 15.7037037 | K14: =AVERAGE(J13:J14) -> 16.03703704
A15: Benary Lime | B15: Zinnia | C15: Low | D15: 1 | E15: 29 | F15: 29 | G15: 13.5 | H15: 0.4655172414 | I15: 209 | J15: 15.48148148
A16: Benary Lime | B16: Zinnia | C16: Low | D16: 2 | E16: 29 | F16: 26 | G16: 13.5 | H16: 0.4655172414 | I16: 162 | J16: 12 | K16: =AVERAGE(J15:J16) -> 13.74074074
A17: QuLimeOrange | B17: Zinnia | C17: Med | D17: 1 | E17: 25 | F17: 23 | G17: 12 | H17: 0.48 | I17: 220 | J17: 18.33333333
A18: QuLimeOrange | B18: Zinnia | C18: Med | D18: 2 | E18: 30 | F18: 30 | G18: 13.5 | H18: 0.45 | I18: 247 | J18: 18.2962963 | K18: =AVERAGE(J17:J18) -> 18.31481481
A19: QuLimeOrange | B19: Zinnia | C19: Low | D19: 1 | E19: 24 | F19: 24 | G19: 12 | H19: 0.5 | I19: 186 | J19: 15.5
A20: QuLimeOrange | B20: Zinnia | C20: Low | D20: 2 | E20: 25 | F20: 25 | G20: 13.5 | H20: 0.54 | I20: 222 | J20: 16.44444444 | K20: =AVERAGE(J19:J20) -> 15.97222222
A21: Zinderella Peach | B21: Zinnia | C21: Med | D21: 1 | E21: 30 | F21: 30 | G21: 15 | H21: 0.5 | I21: 308 | J21: 20.53333333
A22: Zinderella Peach | B22: Zinnia | C22: Med | D22: 2 | E22: 30 | F22: 30 | G22: 13.5 | H22: 0.45 | I22: 301 | J22: 22.2962963 | K22: =AVERAGE(J21:J22) -> 21.41481481
A23: Zinderella Peach | B23: Zinnia | C23: Low | D23: 1 | E23: 35 | F23: 35 | G23: 15 | H23: 0.4285714286 | I23: 275 | J23: 18.33333333
A24: Zinderella Peach | B24: Zinnia | C24: Low | D24: 2 | E24: 30 | F24: 29 | G24: 13.5 | H24: 0.45 | I24: 281 | J24: 20.81481481 | K24: =AVERAGE(J23:J24) -> 19.57407407 | L24: =AVERAGE(J5:J24) -> 17.22851852 | M24: =AVERAGE(K6,K10,K14,K18,K22) -> 18.12740741 | N24: =AVERAGE(K8,K12,K16,K20,K24) -> 16.32962963
E25: =SUM(E5:E24) -> 594 | F25: =SUM(F5:F24) -> 573 | H25: =SUM(H5:H24)/20 -> 0.4616045799 | I25: =SUM(I5:I24) -> 4731
E26: Avg. Survival Rate | F26: =F25/E25 -> 0.9646464646 | H26: Stems/Plant | I26: =I25/F25 -> 8.256544503
A28: Stem Price Data
A29: Source | B29: Price | D29: Producers | E29: stems in bundle | F29: price | G29: price per stem
A30: https://www.menkveldfarm.com/flowers-by-the-bunch | B30: 1.2 | E30: 10 | F30: 9 | G30: =F30/E30 -> 0.9
A31: https://www.menkveldfarm.com/flowers-by-the-bunch | B31: 0.75
A32: https://www.menkveldfarm.com/flowers-by-the-bunch | B32: 1 | D32: price
A33: Memphis producer | B33: =G30 -> 0.9 | D33: 10
A34: Average Price Per Stem | B34: =AVERAGE(B30:B33) -> 0.9625
A36: Seed Prices
A37: Seed Prices from Johnny's | B37: Number of Seeds | C37: Price | D37: Average Seed Price
A38: Benary Mix | B38: 500 | C38: 20.7 | D38: =SUM(C38:C42)/SUM(B38:B42) -> 0.05152
A39: QuLemPeach | B39: 500 | C39: 29.5
A40: Benary Lime | B40: 500 | C40: 20.7
A41: QuLimeOrange | B41: 500 | C41: 29.5
A42: Zinderella Peach | B42: 500 | C42: 28.4
B44: Trays per bag | C44: Trays needed | D44: # Bags Needed | E44: Price per bag | F44: Price for Plugs for seed
A45: Promix 2.8 cu ft bags | B45: 40 | C45: 50 | D45: =C45/B45 -> 1.25 | E45: 21.79 | F45: =D45*E45 -> 27.2375
A46: planting all as plugs
A48: Growing Transplants cost addition to seed cost | B48: For all plugs | D48: Cells per tray | E48: Price Per Tray | F48: # of Trays | G48: Total tray price
A49: Avg seed cost | B49: =C1*0.05 -> 89 | D49: 36 | E49: 0.8 | F49: =C45 -> 50 | G49: =E49*F49 -> 40
A50: Growing Medium | B50: =F45 -> 27.2375 | D50: bulbs | E50: Wattage | F50: hours run a day | G50: Electricity cost per kwh | I50: Cost per month for 1 bulb | J50: Cost per month for all bulbs | K50: Months run
A51: Trays | B51: =G49 -> 40 | D51: 16 | E51: 18 | F51: 16 | G51: 0.16 | I51: =1.38 -> 1.38 | J51: =I51*D51 -> 22.08 | K51: 2 | L51: =J51*K51 -> 44.16
A52: Seed starting light energy use | B52: =L51 -> 44.16
A53: Total cost of Transplants per Transplant | B53: =SUM(B49:B52) -> 200.3975 | C53: =B53/C1 -> 0.1125828652
A55: Fertilizer
A56: Fertilizer | B56: Lbs. of actual N per 1,000 sq ft | C56: N per bag | D56: Lbs. in Bag | E56: lbs of N in bag | F56: Applying lbs of product | G56: Receipt Price | H56: Lbs. in Bag | I56: Price/Lb.
A57: Medium appl of fertilizer - 20-10-20 | B57: 2 | C57: 0.2 | D57: 25 | E57: =D57*C57 -> 5 | F57: =B57*E57 -> 10 | G57: 37.58 | H57: 25 | I57: =G57/H57 -> 1.5032
A58: *Note: 2 pounds of nitrogen per 1,000 sq ft is medium fertilization split over 8 applications total
A60: Ground Cover
A61: Ground Cover | B61: width | C61: length | D61: Total sq ft | E61: price each | G61: Price per sq ft | H61: Total sq ft used
A62: DeWitt 3.2 oz Sunbelt, Woven Ground Cover Black 6 ft by 300 | B62: 6 | C62: 300 | D62: =B62*C62 -> 1800 | E62: 162.074 | G62: =E62/D62 -> 0.09004111111 | H62: 1000
G63: =G62/3 -> 0.0300137037 | H63: Lats 3 Years
A64: Staples
A65: Staples | B65: Total Bought | C65: Cost | D65: Cost per Staple | E65: Staples per Sq. Ft. | F65: Total Sq. Ft. | G65: Total # Staples
A66: Pro trade 6 inch sod staple flat top | B66: 300 | C66: 18 | D66: =C66/B66 -> 0.06 | E66: 1 | F66: 1000 | G66: =F66*E66 -> 1000
B67: 100 | C67: 9.59 | D67: =C67/B67 -> 0.0959
C68: avg | D68: =(D67+D66)/2 -> 0.07795
A70: Flower Stakes
B71: Price per Stake | C71: Stakes every 8 Ft. | D71: Stakes on Sides in Ft. | E71: Width of Bed in Ft. | F71: 1000 Sq. Ft. | G71: # of Sections of Stakes | H71: Stakes Needed | I71: Total Price of Stakes
A72: Step in fence post TSC, 2 inch, 4 ft tall | B72: 2.99 | C72: 8 | D72: 2 | E72: 3 | F72: =1000/E72 -> 333.3333333 | G72: =F72/C72 -> 41.66666667 | H72: 84 | I72: =H72*B72 -> 251.16
I73: =I72/3 -> 83.72 | J73: Lasts for Three Years
I74: =I73/H72 -> 0.9966666667 | J74: Per Stake
A76: Flower Netting
B77: Roll Width in ft | C77: Roll Length in ft | D77: Roll Total sq ft | E77: % of Roll Needed | F77: Netting Roll Price
A78: Tenax plant support 6"X6" | B78: 4 | C78: 328 | D78: =B78*C78 -> 1312 | E78: =1000/D78 -> 0.762195122 | F78: 75
F79: =F78/1000 -> 0.075 | G79: Per Square Foot
A81: Fungicide
A82: Fungicide | B82: number of sprays | C82: max application rate tbspoon per 1 gallon of water | D82: tablespoon in an oz | E82: application rate per 1 gal water in oz | G82: Gallons per 1,000 sq ft | H82: Total amount in oz to apply per growing | J82: Price for product | K82: oz in bottle | L82: price per oz | M82: Total cost for application per season | P82: Links
A83: Chlorothalonil Daconil -site one commercial | B83: 3 | E83: 3.6 | G83: 1 | H83: =(E83*G83)*B83 -> 10.8 | J83: 210 | K83: 320 | L83: =J83/K83 -> 0.65625 | M83: =H83*L83 -> 7.0875 | N83: using smaller bottles instead of commercial price here | P83: https://www.siteone.com/71418fung-daconil-weatherstik-fungicide-25-gal-agency/p/769562?store=454&cid=lia|siteone_2023_pest_XXXXX|{adgroup}|google&ds_k=&xmid=xm_%ebuy!_%25epid!_%ecid!&gad_source=1&gclid=Cj0KCQiA88a5BhDPARIsAFj595jFwv5HpkzBFqanxnnpc2uCP3M6wCFNlwqbts9ryoiWxF07CwchDZcaAokhEALw_wcB
A84: chlorothalonil - daconil | B84: 2 | C84: 3 | D84: 0.5 | E84: =C84*D84 -> 1.5 | G84: 1 | H84: =(E84*G84)*B84 -> 3 | J84: 17.16 | K84: 16 | L84: =J84/K84 -> 1.0725 | M84: =H84*L84 -> 3.2175 | P84: https://www.homedepot.com/p/Daconil-16-oz-Concentrate-Fungicide-100536524/202268570
A85: Copper - capt jack's | B85: 1 | E85: 2 | G85: 2.3 | H85: =(E85*G85)*B85 -> 4.6 | J85: 17.98 | K85: 16 | L85: =J85/K85 -> 1.12375 | M85: =H85*L85 -> 5.16925 | P85: https://www.homedepot.com/p/Bonide-Captain-Jack-s-Copper-Fungicide-16-oz-Concentrate-for-Organic-Gardening-Controls-Common-Diseases-811/203911375
B87: copper - 1.1 to 2.3 gallons of diluted spray per 1,000 sq ft is application rate with 0.5 to 2.0 fluid oz of product range mixed in. took max for both | M87: =M84+M85 -> 8.38675 | N87: total fung app per season
B88: 1 gal per 1,000 sq ft. in rule of thumb for spraying for leaf coverage from Celeste. For daconil commercial product, 3.6 oz per 1,000 sq foot is application rate for single application recommendation from label.
B89: spray for leaf runoff, spot spraying
A91: Insecticide
B92: nu of sprays | E92: application rate per 1 gal water in oz | G92: gallons per 1,000 sq ft | H92: total amount in oz to apply per growing | J92: Price for product | K92: oz in bottle | L92: price per oz | M92: Total cost for application per season
A93: Sevin liquid - zetacypermethrin | B93: 4 | E93: 4 | G93: 1 | H93: =(E93*G93)*B93 -> 16 | J93: 18.97 | K93: 32 | L93: =J93/K93 -> 0.5928125 | M93: =H93*L93 -> 9.485 | P93: https://www.homedepot.com/p/Sevin-32-oz-16-000-sq-ft-Outdoor-Lawn-and-Garden-Insect-Killer-Concentrate-3-Month-Control-100530123/303593798
A94: separate sprays or tank mixed?
J95: knoxville seed and supply
A97: Irrigation System
B98: total sq ft
A99: 3 ft wide beds, 2 lines, 200 linear feet of tape of that, so if it is 3 ft wide, 666.67 linear feet of tape | B99: 1000
A101: Variable only one year use: | B101: Bed widthin ft | C101: bed length in ft | D101: number of lines in bed | E101: Linear ft of driptape needed | F101: Price of driptape | G101: Length in ft | H101: Price per ft of driptape
A102: Driptape - toro aqua-trax 5/8", 6 mil, 8 in, 0.5 gpm, 2500' | B102: 6 | C102: =B99/B102 -> 166.6666667 | D102: 4 | E102: =C102*D102 -> 666.6666667 | F102: 124 | G102: 2500 | H102: =F102/G102 -> 0.0496
A104: Irrigation Attachments
C105: Useful Life for Fixed Costs | D105: 3 | E105: Years
A106: From Irrigation King receipt Celeste | B106: Totalquantity from Celeste | C106: quantity for 1,000 | D106: price each unit | E106: Fixed cost | G106: Annual Purchase - Variable Costs
A107: 5/8" tape swivel X 5/8" tape swivel repair coupler | B107: 10 | C107: 5 | D107: 3.5 | E107: =C107*D107 -> 17.5 | G107: 5 | H107: =G107*D107 -> 17.5
A108: 8 mm punch red handle | B108: 1 | C108: 1 | D108: 6.95 | E108: 6.95 | H108: 0
A109: 5/8" tape end plug | B109: 20 | C109: 8 | D109: 5.2 | E109: 41.6 | G109: 2 | H109: 10.4
A110: starter mini-valve 10mm barb x 5/8" tape swivel | B110: 20 | C110: 8 | D110: 14.6 | E110: 116.8 | G110: 2 | H110: 29.2
A111: 3/4" permaloc elbow 800 series | B111: 1 | C111: 1 | D111: 3.69 | E111: 3.69 | H111: 0
A112: 3/4" permaloc x 3/4" MHT w cap plug 800 series | B112: 2 | C112: 1 | D112: 4.3 | E112: 4.3 | H112: 0
A113: 3/4" permaloc coupler 800 series | B113: 2 | C113: 1 | D113: 4.32 | E113: 4.32 | H113: 0
A114: 3/4" permaloc x 3/4" FHT 800 series | B114: 2 | C114: 1 | D114: 6.06 | E114: 6.06 | H114: 0 | K114: City | L114: Water prices per 1,000 gallons
A115: 3/4" permaloc x 3/4 MPT 800 series | B115: 2 | C115: 1 | D115: 2.76 | E115: 2.76 | H115: 0 | K115: Lebanon | L115: 10.968
E116: 0 | H116: 0 | K116: Murfreesboro | L116: 3.66
A117: From Dripworks receipt Celeste | E117: 0 | H117: 0 | K117: Bristol | L117: 6.28
A118: Mainline 3/4" poly tubing - 100 ft | B118: 1 | C118: 1 | D118: 31.95 | E118: 31.95 | H118: 0 | K118: Springfield | L118: 6.58
A119: 3/4 easy loc coupler | B119: 2 | D119: 4.98 | E119: 0 | G119: 2 | H119: 9.96 | K119: Fayetteville | L119: 7.83
A120: 3/4" easy loc elbow | B120: 2 | C120: 1 | D120: 7.78 | E120: 7.78 | H120: 0 | K120: Clinton | L120: 5.7
A121: 3/4" easy loc x male hose end | B121: 1 | C121: 1 | D121: 1.59 | E121: 1.59 | H121: 0 | K121: State average | L121: =AVERAGE(L115:L120) -> 6.836333333
A122: 3/4" easy loc tee | B122: 1 | C122: 1 | D122: 5.95 | E122: 5.95 | H122: 0
A123: 3/4" easy loc valve | B123: 1 | C123: 1 | D123: 4.95 | E123: 4.95 | H123: 0 | K123: Days to Maturity | M123: avg days to maturity
A124: shipping - do we include? (none on irrigation king) | C124: 1 | D124: 14.95 | E124: 14.95 | H124: 0 | K124: 75 | L124: 90 | M124: =AVERAGE(K124:L124) -> 82.5
C125: Total fixed cost | E125: =SUM(E107:E124) -> 271.15 | G125: Total | H125: =SUM(H107:H124) -> 67.06 | M125: =M124/7 -> 11.78571429
D126: 3 Year Spread | E126: =E125/D105 -> 90.38333333 | M126: =ROUNDUP(M125,0) -> 12 | N126: 12 weeks to maturity
E127: =E126*0.2 -> 18.07666667
A128: Irrigation Usage Cost | B128: Inches of water to deliver | C128: Hours to run to deliver water | D128: minutes run | E128: Feet of driptape | F128: Gallons per minute emitted | G128: Total gallons emitted per minute for 1,000 sq feet | H128: Gallons per week | I128: Weeks to water (weeks to maturity from planting divided by 2) | J128: Total Gallons | K128: Thousand gallons | L128: Price per 1,000 gallon of water
A129: 0.5 GPM drip line at 12” emitter spacing | B129: 1 | C129: =5.8 -> 5.8 | D129: =C129*60 -> 348 | E129: 666.67 | F129: 0.5 | G129: 6.67 | H129: =G129*D129 -> 2321.16 | I129: =M126/2 -> 6 | J129: =H129*I129 -> 13926.96 | K129: =J129/1000 -> 13.92696 | L129: =L121 -> 6.836333333 | M129: =L129*K129 -> 95.20934088
C130: Penn state: https://extension.psu.edu/determining-how-long-to-run-drip-irrigation-systems-for-vegetables
A131: Harvest Containers
B132: Number of containers | C132: 10 L, 10 count johnnys | D132: price each bucket | E132: total cost
A133: Harvest containers | B133: 100 | C133: 20.5 | D133: =C133/10 -> 2.05 | E133: =B133*D133 -> 205 | F133: https://www.johnnyseeds.com/tools-supplies/cut-flower-supplies/flower-buckets/flower-buckets-10-l-10-count-7824.html
A135: Labor Based on 1/4 acre operation, one full time employee
B136: Hours per week for 1/4 acre | C136: Number of crops in 1/4 acre at one time | D136: Hours per wk devoted to this crop | E136: Avg Number of weeks to produce this crop | F136: Total hours devoted to crop
B137: 40 | C137: 5 | D137: =B137/C137 -> 8 | E137: =M126+2 -> 14 | F137: =D137*E137 -> 112 | H137: Weeks to produce this crop determined from weeks to maturity of the crop from planting
B139: Labor rate | C139: 15.87 | D139: https://flag.dol.gov/wage-data/adverse-effect-wage-rates#range
A142: Land Rent
A143: Land - cash rent | B143: 1,000 sq. ft. | C143: 1 | D143: 25 | E143: Cash rental rates are based on the 2022 USDA-NASS reported cash rental rates for irrigated cropland in Tennessee ($187/acre).
A145: Large Equipment
A146: Tiller | B146: 4000 | C146: 5 Year Depreciation | D146: =B146*0.42 -> 1680 | E146: https://www.bcsamerica.com/product/model-732
B147: =((B146-D146)/5)*0.2 -> 92.8 | C147: Per Year | D147: Salvage Value
A148: *Sharing cost with other sections of 1/4 acre | B148: =B147*0.2 -> 18.56
A149: Lawn Mower | B149: 2000 | C149: 5 Year Depreciation | D149: =B149*0.36 -> 720 | E149: https://www.foards.com/collections/bad-boy-mowers/products/bby25fj180
B150: =((B149-D149)/5)*0.2 -> 51.2 | C150: Per Year | D150: Salvage Value
A151: *Sharing cost with other sections of 1/4 acre | B151: =B150*0.2 -> 10.24
A153: Machinery Repair and Maintenance 5% | B153: =((B146+B149)*0.05)*0.2 -> 60
A155: Small Equipment
A156: - EcoCart Hookup Kit | B156: 692.11 | G156: QC Supply
A157: - Mulch Hole Burner | B157: 350 | G157: https://www.johnnyseeds.com/tools-supplies/mulches-and-weed-barrier/mulch-tools-accessories/mulch-hole-burners/mulch-hole-burner-starter-kit-7664.0.html?utm_source=google&utm_medium=cpc&utm_campaign=BL%20|%20PMAX%20|%20Tools%20&%20Supplies&utm_keyword=&gad_source=1&gclid=CjwKCAiA6t-6BhA3EiwAltRFGM_mVcoh-t7zeG2pT1Q5rWVXhXudQjk49l5oKaiZk0BBQfONmWn3pxoC2K4QAvD_BwE
A158: - Craftsman Large Shovels (2) $25 | B158: 50 | G158: https://www.lowes.com/pd/CRAFTSMAN-45-in-Wood-Handle-Digging-Shovel/5015343867
A159: - Craftsman Large Heavy Rake (1) $25 | B159: 25 | G159: Lowes
A160: - Craftsman Leaf Rake (1) $25 | B160: 25 | G160: Lowes
A161: - Craftsman Garden Hoe (1) $25 | B161: 25 | G161: Lowes
A162: - Craftsman Stirrup Hoe (1) $28 | B162: 28 | G162: Lowes
A163: - Craftsman Wheel Barrow (1) $120 | B163: 120 | G163: Lowes
A164: - Fiskars Hand Pruners (2) $30 | B164: 60 | G164: Lowes
A165: - Fiskars Lopper (1) | B165: 35 | G165: Lowes
A166: - Garden Hand Tool Set (1) | B166: 50 | G166: Lowes
A167: - Garden Gloves (2) | B167: 40 | G167: https://www.lowes.com/pd/Miracle-Gro-SYNTH-LEATHER-HI-DEX-GLOVES-M/1002630254
A168: - Rubber Mallet (staples) | B168: 20
A169: - Hammer (2) $6 | B169: 12
A170: Total | B170: =SUM(B156:B169) -> 1532.11 | C170: Lasts for 3 Years
A171: *Sharing cost with other sections of 1/4 acre | B171: =(B170/3)*0.2 -> 102.1406667
A173: Fuel
D174: Gallons | E174: Price per Gallon | H174: total fuel use in gal
A175: Lawn Mower for 1,000 sq. ft. | B175: .1 Gallons | C175: Mow 24 Times | D175: =0.1*24 -> 2.4 | E175: 3.75 | F175: =D175*E175 -> 9 | G175: =ROUNDUP(D175,0) -> 3 | H175: =G175+D176 -> 6
A176: Tiller for 1,000 sq. ft. | B176: .75 Gallons | C176: 4 Passes | D176: =0.75*4 -> 3 | E176: 3.75 | F176: =D176*E176 -> 11.25
A177: Propane for Mulch Burner (1lb. Propane Cylinder) 20% (in lbs) | B177: 2 | C177: 13 | E177: =C177/B177 -> 6.5 | F177: =(13)*0.2 -> 2.6 | G177: https://www.lowes.com/pd/BernzOmatic-1-lb-2-Pack-Pre-Filled-Propane-Tank/50235565
B178: =B177*0.2 -> 0.4 | E178: Total | F178: =SUM(F175:F177) -> 22.85
A179: Building Expenses
B180: Purchase | E180: Salvage | F180: Salvage | G180: Average | H180: Useful | J180: Interest | M180: Property
A181: Item | B181: Price | C181: Units | D181: Cost | E181: Percent | F181: Value | G181: Value | H181: Life | I181: Depreciation | J181: Rate | K181: Interest | L181: Insurance | M181: Tax | N181: Repairs
A182: Storage and Post Harvest Handling Building (15'X20'X16') | B182: 10000 | C182: 1 | D182: =B182*C182 -> 10000 | E182: 0.25 | F182: =D182*E182 -> 2500 | G182: =(D182+F182+I182)/2 -> 6500 | H182: 15 | I182: =(D182-F182)/H182 -> 500 | J182: 0.07 | K182: =(CUMIPMT(J182,5,B182,1,5,1)/20)*-1 -> 69.83807112 | L182: =G182*0.005 -> 32.5 | M182: =G182*0.005 -> 32.5 | N182: =D182*0.02 -> 200
M184: Total Annual Cost for 1/4 acre operation | N184: =I182+K182+L182+M182+N182 -> 834.8380711
M185: Total Annual Cost for this crop (20% of total) | N185: =N184*0.2 -> 166.9676142
